bitfinex-derivatives/quotes_BTCF0:USTF0_20250308
["timestamp","ask_amount","ask_price","bid_price","bid_amount"]
[1741433927410,0.178902,85916.0,85913.0,0.20786995]
[1741433927411,0.1164047,85914.0,85913.0,0.32427575]
[1741433927610,0.1164047,85914.0,85913.0,0.20786995]
[1741433927807,0.1154047,85914.0,85913.0,0.20786995]
[1741433928309,0.49368471,85914.0,85913.0,0.20786995]
[1741433928510,0.49168471,85914.0,85913.0,0.20786995]
[1741433929020,0.49168471,85914.0,85913.0,0.21086995]
[1741433931107,0.49168471,85914.0,85913.0,0.003]
[1741433933222,0.49181789,85914.0,85913.0,0.003]
[1741433933414,0.49177672,85914.0,85913.0,0.003]
[1741433933617,0.49168471,85914.0,85913.0,0.003]
[1741433934218,0.49179074,85914.0,85913.0,0.003]
[1741433934421,0.13088471,85914.0,85913.0,0.003]
[1741433934622,0.85248471,85914.0,85913.0,0.003]
[1741433936022,0.8350047,85914.0,85913.0,0.003]
[1741433936425,0.85248471,85914.0,85913.0,0.003]
[1741433937230,0.7216,85914.0,85913.0,0.003]
[1741433937418,0.80124,85914.0,85913.0,0.003]
[1741433937725,0.9176447,85914.0,85913.0,0.003]
[1741433938526,0.91776885,85914.0,85913.0,0.003]
[1741433938733,0.91777946,85914.0,85913.0,0.003]
[1741433938917,0.91776444,85914.0,85913.0,0.003]
[1741433939123,0.5568447,85914.0,85913.0,0.003]
[1741433939519,0.55692942,85914.0,85913.0,0.003]
[1741433939720,0.55696403,85914.0,85913.0,0.003]
[1741433939933,0.5568447,85914.0,85913.0,0.003]
[1741433943829,1.2853447,85914.0,85913.0,1e-07]
[1741433944026,0.1164223,85901.0,85887.0,0.0333]
[1741433944328,0.11644,85888.0,85887.0,0.0333]
[1741433944634,0.116444,85885.0,85884.0,0.0323]
[1741433945521,0.12819173,85885.0,85884.0,0.0323]
[1741433946926,0.116444,85885.0,85884.0,0.0323]
[1741433947129,0.3608,85887.0,85886.0,0.1164427]
[1741433947329,0.3608,85887.0,85884.0,0.0638]
[1741433947527,0.116444,85885.0,85884.0,0.0638]
[1741433949323,0.3608,85887.0,85884.0,0.1220222]
[1741433949518,0.3608,85887.0,85886.0,0.1164427]
[1741433950128,0.47738491,85887.0,85886.0,0.1164427]
[1741433950332,0.116444,85885.0,85884.0,0.0638]
[1741433950630,0.11653404,85885.0,85884.0,0.0638]
[1741433951240,0.11653404,85885.0,85884.0,0.1802454]
[1741433951822,0.11653404,85885.0,85884.0,0.0638]
[1741433952235,0.19609404,85885.0,85884.0,0.0638]
[1741433952534,0.196004,85885.0,85884.0,0.0638]
[1741433952934,0.196004,85885.0,85884.0,0.0323]
[1741433953132,0.196004,85885.0,85864.0,0.00174697]
[1741433953133,0.1164535,85878.0,85877.0,0.032]
[1741433953332,0.4772535,85878.0,85877.0,0.0314]
[1741433953828,0.4772535,85878.0,85877.0,0.0634]
[1741433954031,0.5084535,85878.0,85877.0,0.0634]
[1741433954333,0.54118391,85878.0,85877.0,0.0634]
[1741433954523,0.54114554,85878.0,85877.0,0.0664]
[1741433954723,0.5410535,85878.0,85877.0,0.0664]
[1741433955228,0.5410535,85878.0,85877.0,0.0344]
[1741433956035,0.55853351,85878.0,85877.0,0.0344]
[1741433956234,0.5410535,85878.0,85877.0,0.0344]
[1741433956435,0.55853351,85878.0,85877.0,0.0344]
[1741433956635,0.49473351,85878.0,85877.0,0.0672]
[1741433956826,0.37828001,85878.0,85877.0,0.0672]
[1741433957027,0.49473351,85878.0,85877.0,0.0672]
[1741433957231,0.49486373,85878.0,85877.0,0.0672]
[1741433957433,0.49473351,85878.0,85877.0,0.0672]
[1741433958036,0.49486702,85878.0,85877.0,0.0672]
[1741433958230,0.49473351,85878.0,85877.0,0.0672]
[1741433958939,0.49473351,85878.0,85877.0,0.0344]
[1741433959342,0.49473351,85878.0,85877.0,0.0651]
[1741433959732,0.49473351,85878.0,85877.0,0.0344]
[1741433960940,0.49473351,85878.0,85867.0,0.0307]
[1741433960941,0.0582314,85872.0,85867.0,0.0307]
[1741433961129,0.4772671,85868.0,85867.0,0.0307]
[1741433961335,0.1164847,85855.0,85854.0,0.20786995]
[1741433961538,0.5574447,85855.0,85854.0,0.20786995]
[1741433962334,0.1164888,85852.0,85851.0,0.0311]
[1741433962537,0.1164942,85848.0,85847.0,0.20786995]
[1741433963043,0.1164942,85848.0,85847.0,0.23896995]
[1741433964034,0.1154942,85848.0,85847.0,0.23896995]
[1741433964340,0.0001122,85848.0,85847.0,0.23896995]
[1741433964645,0.1164942,85848.0,85847.0,0.27226995]
[1741433964839,0.1164942,85848.0,85847.0,0.30496995]
[1741433967548,0.1164942,85848.0,85847.0,0.0971]
[1741433968048,0.0582455,85851.0,85847.0,0.0971]
[1741433968248,0.3608,85852.0,85847.0,0.0971]
[1741433968443,0.3608,85852.0,85851.0,0.1164901]
[1741433968760,0.3608,85852.0,85847.0,0.0971]
[1741433968761,0.44096,85852.0,85847.0,0.0971]
[1741433969049,0.44096,85852.0,85851.0,0.1164901]
[1741433969247,0.44107077,85852.0,85851.0,0.1164901]
[1741433969455,0.31101077,85852.0,85851.0,0.1801901]
[1741433969949,0.00011077,85852.0,85851.0,0.1801901]
[1741433970145,0.08032,85853.0,85852.0,0.1164888]
[1741433970353,0.10366647,85860.0,85859.0,0.1164793]
[1741433970650,0.08024,85861.0,85860.0,0.1164779]
[1741433971148,0.00012864,85861.0,85860.0,0.1164779]
[1741433972246,0.00212864,85861.0,85860.0,0.1164779]
[1741433972750,0.00012864,85861.0,85860.0,0.1164779]
[1741433972950,0.00012864,85861.0,85860.0,0.1184779]
[1741433973151,0.11660524,85861.0,85860.0,0.1184779]
[1741433973342,0.00012864,85861.0,85860.0,0.1184779]
[1741433974057,0.00012864,85861.0,85860.0,0.1487779]
[1741433976263,0.00012864,85861.0,85860.0,0.1517779]
[1741433976850,0.00012864,85861.0,85860.0,0.1507779]
[1741433977457,0.00012864,85861.0,85860.0,0.1497779]
[1741433978051,0.00012864,85861.0,85860.0,0.35864785]
[1741433979362,0.11660524,85861.0,85860.0,0.35864785]
[1741433979661,0.00012864,85861.0,85860.0,0.35864785]
[1741433980057,0.00012864,85861.0,85860.0,0.35764785]
[1741433980247,0.11660524,85861.0,85860.0,0.35764785]
[1741433980658,0.00012864,85861.0,85860.0,0.35764785]
[1741433980858,0.11760524,85861.0,85860.0,0.23816995]
[1741433981161,0.1501766,85861.0,85860.0,0.23816995]
[1741433981462,0.1491766,85861.0,85860.0,0.20786995]
[1741433981655,0.0327,85861.0,85860.0,0.20786995]
[1741433982048,0.0627,85861.0,85860.0,0.32434785]
[1741433982661,0.0627,85861.0,85860.0,0.1164779]
[1741433982853,0.0627,85861.0,85860.0,0.1491779]
[1741433983255,0.0637,85861.0,85860.0,0.1491779]
[1741433984066,0.0637,85861.0,85860.0,0.0327]
[1741433984067,0.1801766,85861.0,85860.0,0.0327]
[1741433984363,0.1791766,85861.0,85860.0,0.0327]
[1741433985152,0.1791766,85861.0,85860.0,0.1817779]
[1741433985761,0.1791766,85861.0,85860.0,0.0326]
[1741433986162,0.1801766,85861.0,85860.0,0.0326]
[1741433986651,0.1791766,85861.0,85860.0,0.0326]
[1741433986857,0.1811766,85861.0,85860.0,0.0326]
[1741433987457,0.18128931,85861.0,85860.0,0.0326]
[1741433987660,0.18131779,85861.0,85860.0,0.0326]
[1741433987966,0.1811766,85861.0,85860.0,0.0326]
[1741433988458,0.18128839,85861.0,85860.0,0.0326]
[1741433988660,0.1811766,85861.0,85860.0,0.0326]
[1741433989855,0.19287057,85861.0,85860.0,0.0326]
[1741433990050,0.032,85861.0,85860.0,0.0326]
[1741433990255,0.032,85861.0,85860.0,0.1490779]
[1741433990256,0.11296,85861.0,85860.0,0.1490779]
[1741433990465,0.2294366,85861.0,85860.0,0.0326]
[1741433991560,0.2274366,85861.0,85860.0,0.0326]
[1741433993563,0.2274366,85861.0,85849.0,0.3608]
[1741433993564,0.1164915,85850.0,85849.0,0.3608]
[1741433993861,0.11662897,85850.0,85849.0,0.3608]
[1741433994269,0.11662897,85850.0,85849.0,0.3923]
[1741433994561,0.00013747,85850.0,85849.0,0.5087929]
[1741433994753,0.00013747,85850.0,85849.0,0.5097929]
[1741433996861,0.11662897,85850.0,85849.0,0.5097929]
[1741433998062,0.11662897,85850.0,85849.0,0.3933]
[1741433998264,0.13410898,85850.0,85849.0,0.3933]
[1741434000070,0.13410898,85850.0,85849.0,0.001]
[1741434000375,0.13846568,85850.0,85849.0,0.001]
[1741434003267,0.13846568,85850.0,85849.0,0.1174929]
[1741434003666,0.13846568,85850.0,85849.0,0.001]
[1741434003874,0.01761748,85850.0,85849.0,0.001]
[1741434004073,0.01761748,85850.0,85849.0,0.1174929]
[1741434004281,0.00013747,85850.0,85849.0,0.2674929]
[1741434004574,0.00013747,85850.0,85849.0,0.27900442]
[1741434005969,0.00113747,85850.0,85849.0,0.28400442]
[1741434007676,0.00013747,85850.0,85849.0,0.34580442]
[1741434008172,0.00013747,85850.0,85849.0,0.34180442]
[1741434008378,0.00013747,85850.0,85849.0,0.34580442]
[1741434008775,0.00013747,85850.0,85849.0,0.34180442]
[1741434008972,0.00013747,85850.0,85849.0,0.34580442]
[1741434009170,0.00013747,85850.0,85849.0,0.67715576]
[1741434010479,0.00017462,85863.0,85849.0,0.81730935]
[1741434010676,0.00017462,85863.0,85862.0,0.4772752]
[1741434011081,0.0322,85873.0,85872.0,0.1164617]
[1741434011278,0.0322,85873.0,85872.0,0.4772617]
[1741434011473,0.03230799,85873.0,85872.0,0.4772617]
[1741434011876,0.00010799,85873.0,85872.0,0.4772617]
[1741434012071,0.00010799,85873.0,85872.0,0.48894291]
[1741434012268,0.00310799,85873.0,85872.0,0.48894291]
[1741434012969,0.00310799,85873.0,85872.0,0.4772617]
[1741434013376,0.00310799,85873.0,85872.0,0.1164617]
[1741434020476,0.00310799,85873.0,85872.0,0.4772617]
[1741434021088,0.00310799,85873.0,85870.0,0.058232]
[1741434021300,0.00310799,85873.0,85872.0,0.1164617]
[1741434021691,0.00310799,85873.0,85872.0,0.1795617]
[1741434021882,0.00310799,85873.0,85872.0,0.1472617]
[1741434022090,0.00310799,85873.0,85872.0,0.1164617]
[1741434022091,0.11956829,85873.0,85872.0,0.1164617]
[1741434022288,0.116463,85871.0,85870.0,0.174694]
[1741434022489,0.116463,85871.0,85870.0,0.058232]
[1741434023091,0.149163,85872.0,85871.0,0.116463]
[1741434023291,0.149163,85872.0,85867.0,0.20908437]
[1741434023292,0.0582319,85871.0,85867.0,0.20908437]
[1741434023479,0.1164698,85866.0,85865.0,0.0332]
[1741434023783,0.058234,85868.0,85865.0,0.0332]
[1741434023784,0.0327,85872.0,85865.0,0.0332]
[1741434023987,0.0327,85872.0,85871.0,0.116463]
[1741434024391,0.0327,85872.0,85871.0,0.149663]
[1741434024584,0.0327,85872.0,85871.0,0.0332]
[1741434024785,0.1491617,85872.0,85871.0,0.116463]
[1741434025188,0.0337,85872.0,85871.0,0.116463]
[1741434025386,0.0337,85872.0,85871.0,0.149663]
[1741434025784,0.0327,85872.0,85871.0,0.149663]
[1741434026092,0.0347,85872.0,85871.0,0.149663]
[1741434026301,0.1511617,85872.0,85871.0,0.149663]
[1741434026585,0.002,85872.0,85871.0,0.149663]
[1741434026991,0.002,85872.0,85871.0,0.181163]
[1741434028288,0.002,85872.0,85871.0,0.213363]
[1741434028687,0.00010799,85873.0,85871.0,0.213363]
[1741434028885,0.00010799,85873.0,85872.0,0.1164617]
[1741434029279,0.00010799,85873.0,85872.0,0.1791617]
[1741434029888,0.00110799,85873.0,85872.0,0.1791617]
[1741434035397,0.00110799,85873.0,85872.0,0.45794086]
[1741434038506,0.00110799,85873.0,85872.0,0.81874086]
[1741434038994,0.00110799,85873.0,85872.0,0.78774086]
[1741434039392,0.00110799,85873.0,85872.0,0.75604086]
[1741434039594,0.00110799,85873.0,85872.0,0.39524086]
[1741434039806,0.12895737,85873.0,85872.0,0.27877916]
[1741434039998,0.11656829,85873.0,85872.0,0.1184617]
[1741434040301,0.1164617,85872.0,85871.0,0.58139815]
[1741434040494,0.1164596,85874.0,85873.0,0.1164591]
[1741434040694,0.1490596,85874.0,85873.0,0.1164591]
[1741434040896,0.0326,85874.0,85871.0,0.46553565]
[1741434041096,0.1490593,85874.0,85873.0,0.1164603]
[1741434041293,0.1164617,85872.0,85871.0,0.46493695]
[1741434041493,0.1607044,85874.0,85873.0,0.1164603]
[1741434041798,0.1164617,85872.0,85871.0,0.34907395]
[1741434041998,0.0326,85874.0,85871.0,0.52316835]
[1741434042200,0.0366,85874.0,85873.0,0.1164603]
[1741434043298,0.0676,85874.0,85873.0,0.1164603]
[1741434044795,0.1840589,85874.0,85872.0,0.1164605]
[1741434044997,0.0666,85874.0,85866.0,0.0332]
[1741434045190,0.1164666,85869.0,85867.0,0.116468]
[1741434045395,0.18026301,85868.0,85866.0,0.0332]
[1741434045803,0.18026301,85868.0,85866.0,0.1496694]
[1741434046198,0.18026301,85868.0,85866.0,0.0332]
[1741434046506,0.18026301,85868.0,85860.0,0.20922401]
[1741434046507,0.1164712,85865.0,85860.0,0.20922401]
[1741434046900,0.1164712,85865.0,85862.0,0.20922401]
[1741434047502,0.1797712,85865.0,85862.0,0.20922401]
[1741434047800,0.17992235,85865.0,85863.0,0.1164729]
[1741434047999,0.17989557,85865.0,85863.0,0.1164729]
[1741434048201,0.1797712,85865.0,85863.0,0.1164729]
[1741434048399,0.1797712,85865.0,85862.0,0.20922401]
[1741434048795,0.1807712,85865.0,85862.0,0.20922401]
[1741434051105,0.1807712,85865.0,85856.0,0.0582412]
[1741434051499,0.1807712,85865.0,85856.0,0.4190412]
[1741434051699,0.18388162,85865.0,85856.0,0.4190412]
[1741434051901,0.18390216,85865.0,85856.0,0.4190412]
[1741434052103,0.1837712,85865.0,85856.0,0.4190412]
[1741434052301,0.1837712,85865.0,85860.0,0.1164779]
[1741434052302,0.18489823,85865.0,85860.0,0.1164779]
[1741434052505,0.1847712,85865.0,85860.0,0.1164779]
[1741434052701,0.18491934,85865.0,85858.0,0.1164801]
[1741434052901,0.18489203,85865.0,85858.0,0.1164801]
[1741434053101,0.18489203,85865.0,85857.0,0.0321]
[1741434053102,0.14840258,85865.0,85864.0,0.11664722]
[1741434053500,0.14740258,85865.0,85864.0,0.11664722]
[1741434053701,0.14740258,85865.0,85864.0,0.14914722]
[1741434054506,0.26387378,85865.0,85864.0,0.03267472]
[1741434054710,0.26387378,85865.0,85864.0,0.00017472]
[1741434056408,0.26187378,85865.0,85864.0,0.00017472]
[1741434057095,0.2617712,85865.0,85864.0,0.00017472]
[1741434057806,0.26186795,85865.0,85864.0,0.00017472]
[1741434058106,0.2617712,85865.0,85864.0,0.00017472]
[1741434058310,0.2637712,85865.0,85864.0,0.00017472]
[1741434059805,0.6255712,85865.0,85864.0,0.00017472]
[1741434060111,0.1164901,85851.0,85850.0,0.17862731]
[1741434060307,0.1164969,85846.0,85845.0,0.11415638]
[1741434061008,0.1475969,85846.0,85845.0,0.11415638]
[1741434061711,0.1465969,85846.0,85845.0,0.11415638]
[1741434062104,0.15070553,85846.0,85845.0,0.11415638]
[1741434062303,0.15056272,85846.0,85845.0,0.11415638]
[1741434062808,0.1505969,85846.0,85845.0,0.11415638]
[1741434063611,0.1834969,85846.0,85845.0,0.11415638]
[1741434064209,0.18747273,85846.0,85845.0,0.11415638]
[1741434064401,0.07197583,85846.0,85845.0,0.11415638]
[1741434064608,0.15185583,85846.0,85845.0,0.23065468]
[1741434064912,0.15185583,85846.0,85845.0,0.1775983]
[1741434064913,0.25154647,85846.0,85845.0,0.1775983]
[1741434065215,0.10778984,85846.0,85845.0,0.1775983]
[1741434065411,0.10778984,85846.0,85845.0,0.5383983]
[1741434065713,0.10778984,85846.0,85845.0,0.4219]
[1741434066212,0.10778984,85846.0,85845.0,0.5383983]
[1741434066411,0.10478984,85846.0,85845.0,0.5383983]
[1741434066910,0.00498984,85846.0,85845.0,0.6883983]
[1741434067409,0.137856,85850.0,85849.0,0.1164929]
[1741434068205,0.13796858,85850.0,85849.0,0.1164929]
[1741434068810,0.25446008,85850.0,85849.0,0.1164929]
[1741434069206,0.00011258,85850.0,85849.0,0.1164929]
[1741434069404,0.00211258,85850.0,85848.0,0.0332]
[1741434069610,0.00211258,85850.0,85848.0,0.149694]
[1741434069801,0.11860408,85850.0,85849.0,0.1164929]
[1741434070214,0.11860408,85850.0,85849.0,0.1494929]
[1741434070412,0.00211258,85850.0,85849.0,0.1825929]
[1741434070605,0.11860408,85850.0,85849.0,0.1825929]
[1741434071110,0.00211258,85850.0,85849.0,0.1825929]
[1741434071312,0.00011258,85850.0,85849.0,0.5433929]
[1741434075204,0.00111258,85850.0,85849.0,0.5433929]
[1741434079717,0.11760408,85850.0,85849.0,0.5433929]
[1741434080222,0.00111258,85850.0,85849.0,0.5433929]
[1741434081023,0.06521258,85850.0,85849.0,0.5433929]
[1741434081220,0.18170408,85850.0,85849.0,0.5433929]
[1741434081412,0.06521258,85850.0,85849.0,0.5433929]
[1741434082609,0.03391258,85850.0,85849.0,0.5433929]
[1741434082914,0.00111258,85850.0,85849.0,0.5433929]
[1741434084220,0.11760408,85850.0,85849.0,0.5433929]
[1741434085621,0.00111258,85850.0,85849.0,0.5433929]
[1741434086026,0.06451258,85850.0,85849.0,0.5433929]
[1741434087723,0.06451258,85850.0,85849.0,0.3608]
[1741434087920,0.1164969,85846.0,85845.0,0.0006]
[1741434088223,0.0582507,85843.0,85840.0,0.1165011]
[1741434088424,0.1493024,85842.0,85841.0,0.1165037]
[1741434088616,0.1825024,85842.0,85841.0,0.1165037]
[1741434089216,0.2606624,85842.0,85841.0,0.1165037]
[1741434089723,0.2606624,85842.0,85832.0,0.34847395]
[1741434089724,0.0562518,85841.0,85832.0,0.34847395]
[1741434090024,0.1165078,85838.0,85832.0,0.34847395]
[1741434090526,0.1165078,85838.0,85833.0,0.1165135]
[1741434090818,0.11663829,85838.0,85832.0,0.34847395]
[1741434091024,0.1165078,85838.0,85832.0,0.34847395]
[1741434091231,0.0317,85840.0,85839.0,0.1165064]
[1741434091524,0.0317,85840.0,85837.0,0.05842882]
[1741434091525,0.1165068,85839.0,85838.0,0.1165076]
[1741434091728,0.1165068,85839.0,85837.0,0.00317472]
[1741434091922,0.1482078,85838.0,85837.0,0.00317472]
[1741434092520,0.0297,85838.0,85837.0,0.11668382]
[1741434093022,0.0297,85838.0,85837.0,0.00017472]
[1741434093023,0.1462078,85838.0,85837.0,0.00017472]
[1741434093627,0.0582621,85826.0,85820.0,8.784e-05]
[1741434093824,0.1165309,85821.0,85820.0,8.784e-05]
[1741434094819,0.1135309,85821.0,85820.0,8.784e-05]
[1741434095030,0.1135309,85821.0,85820.0,0.11662004]
[1741434095224,0.14388975,85825.0,85823.0,0.1165268]
[1741434095528,0.26041515,85825.0,85822.0,0.0582647]
[1741434095731,0.1165282,85823.0,85822.0,0.0582647]
[1741434096126,0.0322,85823.0,85822.0,0.0582647]
[1741434096720,0.0322,85823.0,85820.0,0.11662004]
[1741434096721,0.1165309,85821.0,85820.0,0.11662004]
[1741434097330,0.0322,85821.0,85820.0,0.11662004]
[1741434098133,0.0322,85821.0,85820.0,0.18092004]
[1741434098725,0.0332,85821.0,85820.0,0.18092004]
[1741434099126,0.0322,85821.0,85820.0,0.18092004]
[1741434100424,0.00014975,85825.0,85820.0,0.18092004]
[1741434100425,0.00014975,85825.0,85820.0,0.06438784]
[1741434100631,0.00014975,85825.0,85824.0,0.4773268]
[1741434101242,0.11667515,85825.0,85824.0,0.1165268]
[1741434101431,0.1165309,85822.0,85821.0,0.1165307]
[1741434101643,0.1165309,85821.0,85820.0,0.11661804]
[1741434101935,0.1477309,85821.0,85820.0,0.11661804]
[1741434102131,0.0312,85821.0,85820.0,0.11661804]
[1741434102338,0.0331,85821.0,85820.0,0.11661804]
[1741434102536,0.0647,85821.0,85820.0,0.11661804]
[1741434102834,0.0647,85821.0,85820.0,8.784e-05]
[1741434102835,0.1812309,85821.0,85820.0,8.784e-05]
[1741434103033,0.1165336,85819.0,85818.0,0.00174747]
[1741434103334,0.0647,85821.0,85818.0,0.00174747]
[1741434103638,0.1165336,85819.0,85818.0,0.00174747]
[1741434104240,0.1812336,85819.0,85818.0,0.00174747]
[1741434105526,0.1822336,85819.0,85818.0,0.00174747]
[1741434109540,0.18238158,85819.0,85818.0,0.00174747]
[1741434109740,0.18237953,85819.0,85818.0,0.00174747]
[1741434109944,0.1823602,85819.0,85818.0,0.00174747]
[1741434110136,0.18235111,85819.0,85818.0,0.00174747]
[1741434110338,0.18235622,85819.0,85818.0,0.00174747]
[1741434110539,0.18234913,85819.0,85818.0,0.00174747]
[1741434110739,0.18233126,85819.0,85818.0,0.00174747]
[1741434110931,0.1822336,85819.0,85818.0,0.00174747]
[1741434111131,0.0657,85819.0,85813.0,0.0622]
[1741434111353,0.1165404,85814.0,85813.0,0.0622]
[1741434112246,0.1804404,85814.0,85813.0,0.0622]
[1741434113244,0.1804404,85814.0,85813.0,0.0632]
[1741434116334,0.0639,85814.0,85813.0,0.0632]
[1741434116844,0.1804404,85814.0,85813.0,0.0632]
[1741434117047,0.0639,85814.0,85813.0,0.0632]
[1741434117640,0.1804404,85814.0,85813.0,0.0632]
[1741434121938,0.0639,85814.0,85813.0,0.0632]
[1741434122141,0.1804404,85814.0,85813.0,0.0632]
[1741434122342,0.1804404,85814.0,85813.0,0.0622]
[1741434122546,0.1804404,85814.0,85813.0,0.0632]
[1741434123839,0.1804404,85814.0,85813.0,0.0622]
[1741434124049,0.1804404,85814.0,85813.0,0.0632]
[1741434125447,0.1804404,85814.0,85813.0,0.001]
[1741434127047,0.18462832,85814.0,85813.0,0.001]
[1741434127652,0.18462832,85814.0,85813.0,0.0643]
[1741434129156,0.1804404,85814.0,85813.0,0.0643]
[1741434129452,0.2601204,85814.0,85813.0,0.0643]
[1741434131858,0.1804404,85814.0,85813.0,0.0643]
[1741434132055,0.2603604,85814.0,85813.0,0.0643]
[1741434132559,0.2603604,85814.0,85813.0,0.0312]
[1741434133059,0.2603604,85814.0,85813.0,0.0615]
[1741434133649,0.26048422,85814.0,85813.0,0.001]
[1741434134355,0.26048422,85814.0,85813.0,0.0627]
[1741434136055,0.26460133,85814.0,85813.0,0.0627]
[1741434136949,0.26460133,85814.0,85813.0,0.001]
[1741434138764,0.26460133,85814.0,85813.0,0.0641]
[1741434139363,0.26460133,85814.0,85813.0,0.001]
[1741434141977,0.18468133,85814.0,85813.0,0.001]
[1741434142171,0.26432133,85814.0,85813.0,0.001]
[1741434142971,0.14778093,85814.0,85807.0,0.06121697]
[1741434143165,0.1165485,85808.0,85807.0,0.06121697]
[1741434143570,0.12066561,85808.0,85807.0,0.06121697]
[1741434143773,0.12066561,85808.0,85807.0,0.17776687]
[1741434143978,0.18386561,85808.0,85807.0,0.17976687]
[1741434144275,0.18386561,85808.0,85807.0,0.06321697]
[1741434144672,0.06731711,85808.0,85807.0,0.17976687]
[1741434144878,0.00411711,85808.0,85807.0,0.17976687]
[1741434145071,0.00012382,85814.0,85813.0,0.1165417]
[1741434145676,0.00012382,85814.0,85813.0,0.1476417]
[1741434146178,0.00012382,85814.0,85813.0,0.1786417]
[1741434146482,0.17269482,85822.0,85821.0,0.1165309]
[1741434146779,0.20654587,85827.0,85826.0,0.1165241]
[1741434147169,0.32306857,85827.0,85826.0,0.1165241]
[1741434147375,0.3232099,85827.0,85826.0,0.1165241]
[1741434148182,0.1165241,85826.0,85825.0,0.1475246]
[1741434148385,0.1812241,85826.0,85825.0,0.1475246]
[1741434149688,0.1812241,85826.0,85825.0,0.1805246]
[1741434149880,0.1842241,85826.0,85825.0,0.1805246]
[1741434150481,0.1832241,85826.0,85825.0,0.1805246]
[1741434150790,0.0667,85826.0,85825.0,0.5413246]
[1741434151091,0.0667,85826.0,85825.0,0.3608]
[1741434151092,0.1832241,85826.0,85825.0,0.3608]
[1741434151387,0.2153241,85826.0,85825.0,0.63991811]
[1741434151789,0.2153241,85826.0,85825.0,0.27911811]
[1741434152183,0.22720277,85826.0,85825.0,0.27911811]
[1741434152592,0.22520277,85826.0,85825.0,0.27911811]
[1741434152791,0.0998,85826.0,85825.0,0.27911811]
[1741434152983,0.0677,85826.0,85825.0,0.39564351]
[1741434153694,0.0647,85826.0,85825.0,0.39564351]
[1741434153889,0.0677,85826.0,85825.0,0.39564351]
[1741434154194,0.0677,85826.0,85825.0,0.42644351]
[1741434154988,0.0667,85826.0,85825.0,0.42644351]
[1741434155189,0.0667,85826.0,85825.0,0.1473254]
[1741434156690,0.002,85826.0,85825.0,0.1473254]
[1741434156891,0.002,85826.0,85825.0,0.15911414]
[1741434157096,0.00014133,85827.0,85826.0,0.1165241]
[1741434157597,0.00014133,85827.0,85826.0,0.1480241]
[1741434158388,0.00314133,85827.0,85826.0,0.1480241]
[1741434161492,0.00014133,85827.0,85826.0,0.1480241]
[1741434162599,0.00014133,85827.0,85824.0,0.3924]
[1741434162600,0.14756403,85827.0,85824.0,0.3924]
[1741434162783,0.1165254,85825.0,85824.0,0.3608]
[1741434163197,0.1474254,85825.0,85824.0,0.3608]
[1741434163597,0.0309,85825.0,85824.0,0.3608]
[1741434163795,0.0309,85825.0,85824.0,0.4773268]
[1741434164003,0.0319,85825.0,85824.0,0.4773268]
[1741434164591,0.0329,85825.0,85824.0,0.5073268]
[1741434166294,0.0309,85825.0,85824.0,0.5073268]
[1741434167206,0.0329,85825.0,85824.0,0.5379268]
[1741434167607,0.0309,85825.0,85824.0,0.5379268]
[1741434167804,0.0319,85825.0,85824.0,0.5379268]
[1741434168300,0.0309,85825.0,85824.0,0.5389268]
[1741434169109,0.0309,85825.0,85824.0,0.3618]
[1741434169502,0.0309,85825.0,85824.0,0.4783268]
[1741434169812,0.0615,85825.0,85824.0,0.4773268]
[1741434170702,0.0625,85825.0,85824.0,0.4773268]
[1741434171705,0.0635,85825.0,85824.0,0.4773268]
[1741434172312,0.1165289,85823.0,85821.0,0.1165296]
[1741434172608,0.0631,85822.0,85821.0,0.1165296]
[1741434173599,0.0631,85822.0,85821.0,0.1788296]
[1741434174110,0.0641,85822.0,85821.0,0.1788296]
[1741434174611,0.0631,85822.0,85821.0,0.1798296]
[1741434174905,0.0631,85822.0,85821.0,0.1487296]
[1741434175501,0.0631,85822.0,85821.0,0.1175296]
[1741434175905,0.1796295,85822.0,85821.0,0.001]
[1741434176506,0.1165336,85819.0,85818.0,0.27911811]
[1741434176707,0.11667141,85819.0,85818.0,0.27911811]
[1741434177511,0.1165377,85816.0,85815.0,0.70927395]
[1741434177716,0.1963377,85816.0,85815.0,0.70927395]
[1741434178412,0.20800306,85816.0,85815.0,0.70927395]
[1741434180020,0.1963377,85816.0,85815.0,0.82581295]
[1741434180205,0.1963377,85816.0,85815.0,0.82681295]
[1741434180406,0.1953377,85816.0,85815.0,0.82681295]
[1741434180809,0.1953377,85816.0,85815.0,0.71027395]
[1741434181010,0.1953377,85816.0,85815.0,0.82681295]
[1741434181205,0.1953377,85816.0,85815.0,0.71127395]
[1741434182323,0.1953377,85816.0,85815.0,0.3628]
[1741434183716,0.0798,85816.0,85815.0,0.479339]
[1741434184322,0.2598377,85816.0,85815.0,0.479339]
[1741434184915,0.2598377,85816.0,85815.0,0.3628]
[1741434185620,0.2598377,85816.0,85815.0,0.479339]
[1741434185821,0.2598377,85816.0,85815.0,0.3628]
[1741434186122,0.25996097,85816.0,85815.0,0.3628]
[1741434186821,0.2598377,85816.0,85815.0,0.3628]
[1741434187711,0.25992586,85816.0,85815.0,0.3628]
[1741434188018,0.2598377,85816.0,85815.0,0.3628]
[1741434191816,0.25997129,85816.0,85815.0,0.3628]
[1741434192124,0.2598377,85816.0,85815.0,0.3628]
[1741434194026,0.1433,85816.0,85815.0,0.3628]
[1741434194230,0.14338936,85816.0,85815.0,0.479339]
[1741434194910,0.25992706,85816.0,85815.0,0.479339]
[1741434195115,0.25992706,85816.0,85815.0,0.542939]
[1741434195921,0.25992706,85816.0,85815.0,0.541939]
[1741434196930,0.25992706,85816.0,85815.0,0.4254]
[1741434197228,0.25992706,85816.0,85815.0,0.541939]
[1741434198315,0.14338936,85816.0,85815.0,0.541939]
[1741434198517,0.25992706,85816.0,85815.0,0.541939]
[1741434199615,0.25992706,85816.0,85815.0,0.181139]
[1741434201225,8.936e-05,85816.0,85815.0,0.181139]
[1741434201426,0.10379631,85827.0,85815.0,0.181139]
[1741434201626,0.10379631,85827.0,85826.0,0.1165241]
[1741434201932,0.10379631,85827.0,85826.0,0.15445096]
[1741434202321,0.10379631,85827.0,85826.0,0.23337096]
[1741434202523,9.627e-05,85827.0,85826.0,0.32403246]
[1741434202722,9.627e-05,85827.0,85826.0,0.35483246]
[1741434203134,0.20654587,85841.0,85828.0,0.1165214]
[1741434203323,0.20654587,85841.0,85828.0,0.15444826]
[1741434203518,0.20654587,85841.0,85835.0,0.1165119]
[1741434203725,0.20654587,85841.0,85835.0,0.51523876]
[1741434204023,0.17326677,85836.0,85835.0,0.51523876]
[1741434204625,0.00312049,85836.0,85835.0,0.51523876]
[1741434206139,0.00612049,85836.0,85835.0,0.51523876]